fUSD/lending_fUSD_20250617
["ID","MTS","AMOUNT","RATE_DAILY","PERIOD"]
[366314796,1750183853705,-3932.74,0.00016438,2]
[366314797,1750183853718,-490.0,0.00016438,2]
[366314798,1750183853730,-490.0,0.00016438,2]
[366314799,1750183853743,-1102.431131,0.00016438,2]
[366314801,1750183853757,-1102.431131,0.00016438,2]
[366314803,1750183853770,-184.20050052,0.00016438,2]
[366314806,1750183853783,-490.0,0.00016438,2]
[366314808,1750183853796,-490.0,0.00016438,2]
[366314811,1750183853820,-768.82,0.00016438,2]
[366314814,1750183853833,-490.0,0.00016438,2]
[366314816,1750183853847,-490.0,0.00016438,2]
[366314818,1750183853861,-490.0,0.00016438,2]
[366314821,1750183853875,-490.0,0.00016438,2]
[366314823,1750183853888,-2508.35,0.00016438,2]
[366314825,1750183853902,-490.0,0.00016438,2]
[366314828,1750183853916,-490.0,0.00016438,2]
[366314830,1750183853932,-1117.54,0.00016438,2]
[366314832,1750183853945,-490.0,0.00016438,2]
[366314835,1750183853958,-490.0,0.00016438,2]
[366314837,1750183853970,-151.0,0.00016438,2]
[366314840,1750183853984,-785.37,0.00016438,2]
[366314842,1750183853996,-151.0,0.00016438,2]
[366314844,1750183854009,-151.0,0.00016438,2]
[366314847,1750183854022,-490.0,0.00016438,2]
[366314849,1750183854036,-490.0,0.00016438,2]
[366314851,1750183854052,-299.85577729,0.00016438,2]
[366314854,1750183854065,-151.0,0.00016438,2]
[366314856,1750183854078,-151.0,0.00016438,2]
[366314858,1750183854091,-560.0,0.00016438,2]
[366314861,1750183854104,-545.39,0.00016438,2]
[366314863,1750183854117,-490.0,0.00016438,2]
[366314865,1750183854129,-490.0,0.00016438,2]
[366314867,1750183854141,-1287.84,0.00016438,2]
[366314870,1750183854155,-490.0,0.00016438,2]
[366314872,1750183854169,-3585.35,0.00016438,2]
[366314874,1750183854182,-490.0,0.00016438,2]
[366314877,1750183854196,-500.0,0.00016438,2]
[366314879,1750183854210,-490.0,0.00016438,2]
[366314881,1750183854225,-869.48,0.00016438,2]
[366314883,1750183854240,-769.58,0.00016438,2]
[366314886,1750183854254,-5226.113523,0.00016438,2]
[366314888,1750183854269,-832.73,0.00016438,2]
[366314890,1750183854283,-5226.113523,0.00016438,2]
[366314893,1750183854297,-490.0,0.00016438,2]
[366314895,1750183854312,-5226.113523,0.00016438,2]
[366314897,1750183854327,-1204.53,0.00016438,2]
[366314900,1750183854341,-580.791069,0.00016438,2]
[366314902,1750183854356,-5226.113523,0.00016438,2]
[366314904,1750183854370,-580.791069,0.00016438,2]
[366314907,1750183854385,-5226.113523,0.00016438,2]
[366314909,1750183854397,-580.791069,0.00016438,2]
[366314911,1750183854410,-580.791069,0.00016438,2]
[366314913,1750183854424,-5226.113523,0.00016438,2]
[366314916,1750183854438,-1753.52,0.00016438,2]
[366314918,1750183854450,-490.0,0.00016438,2]
[366314920,1750183854463,-490.0,0.00016438,2]
[366314923,1750183854475,-580.791069,0.00016438,2]
[366314925,1750183854488,-580.791069,0.00016438,2]
[366314927,1750183854500,-582.43,0.00016438,2]
[366314930,1750183854513,-490.0,0.00016438,2]
[366314932,1750183854524,-1611.22,0.00016438,2]
[366314934,1750183854538,-1554.55,0.00016438,2]
[366314937,1750183854553,-5226.113523,0.00016438,2]
[366314939,1750183854566,-490.0,0.00016438,2]
[366314941,1750183854579,-580.791069,0.00016438,2]
[366314944,1750183854592,-580.791069,0.00016438,2]
[366314946,1750183854604,-5226.113523,0.00016438,2]
[366314948,1750183854617,-5226.113523,0.00016438,2]
[366314951,1750183854629,-580.791069,0.00016438,2]
[366314953,1750183854641,-5226.113523,0.00016438,2]
[366314955,1750183854654,-633.48,0.00016438,2]
[366314957,1750183854668,-580.791069,0.00016438,2]
[366314960,1750183854683,-5226.113523,0.00016438,2]
[366314962,1750183854696,-580.791069,0.00016438,2]
[366314964,1750183854713,-5226.113523,0.00016438,2]
[366314967,1750183854725,-580.791069,0.00016438,2]
[366314969,1750183854738,-5801.34,0.00016438,2]
[366314971,1750183854751,-2179.27,0.00016438,2]
[366314974,1750183854764,-490.0,0.00016438,2]
[366314976,1750183854776,-490.0,0.00016438,2]
[366314978,1750183854789,-490.0,0.00016438,2]
[366314981,1750183854802,-1991.62,0.00016438,2]
[366314983,1750183854813,-1347.0,0.00016438,2]
[366314985,1750183854824,-490.0,0.00016438,2]
[366314987,1750183854838,-1000.0,0.00016438,2]
[366314990,1750183854851,-1000.0,0.00016438,2]
[366314992,1750183854863,-1000.0,0.00016438,2]
[366314994,1750183854876,-1000.0,0.00016438,2]
[366314997,1750183854889,-1000.0,0.00016438,2]
[366314999,1750183854901,-1000.0,0.00016438,2]
[366315001,1750183854912,-490.0,0.00016438,2]
[366315004,1750183854925,-992.2,0.00016438,2]
[366315006,1750183854937,-528.33501685,0.00016438,2]
[366315008,1750183854949,-279.00577639,0.00016438,2]
[366315010,1750183854961,-2617.69,0.00016438,2]
[366315013,1750183854973,-490.0,0.00016438,2]
[366315015,1750183854985,-151.0,0.00016438,2]
[366315017,1750183854998,-6107.91,0.00016438,2]
[366315020,1750183855011,-490.0,0.00016438,2]
[366315022,1750183855024,-490.0,0.00016438,2]
[366315024,1750183855040,-490.0,0.00016438,2]
[366315027,1750183855056,-151.0,0.00016438,2]
[366315029,1750183855069,-169.269654,0.00016438,2]
[366315031,1750183855082,-490.0,0.00016438,2]
[366315033,1750183855094,-490.0,0.00016438,2]
[366315036,1750183855108,-490.0,0.00016438,2]
[366315038,1750183855120,-151.0,0.00016438,2]
[366315040,1750183855133,-490.0,0.00016438,2]
[366315043,1750183855147,-1988.86,0.00016438,2]
[366315045,1750183855160,-151.0,0.00016438,2]
[366315047,1750183855175,-1679.77,0.00016438,2]
[366315050,1750183855188,-1685.45,0.00016438,2]
[366315052,1750183855201,-151.0,0.00016438,2]
[366315054,1750183855213,-729.13,0.00016438,2]
[366315056,1750183855226,-490.0,0.00016438,2]
[366315059,1750183855238,-490.0,0.00016438,2]
[366315061,1750183855251,-151.0,0.00016438,2]
[366315064,1750183855264,-247.476262,0.00016438,2]
[366315066,1750183855276,-2019.69,0.00016438,2]
[366315068,1750183855288,-579.51,0.00016438,2]
[366315070,1750183855301,-498.36,0.00016438,2]
[366315073,1750183855313,-490.0,0.00016438,2]
[366315075,1750183855326,-470.24451365,0.00016438,2]
[366315078,1750183855340,-3028.94,0.00016438,2]
[366315080,1750183855352,-490.0,0.00016438,2]
[366315082,1750183855365,-490.0,0.00016438,2]
[366315084,1750183855377,-490.0,0.00016438,2]
[366315087,1750183855390,-367.491417,0.00016438,2]
[366315089,1750183855403,-807.7,0.00016438,2]
[366315091,1750183855416,-367.491417,0.00016438,2]
[366315093,1750183855428,-367.491417,0.00016438,2]
[366315096,1750183855440,-490.0,0.00016438,2]
[366315098,1750183855453,-367.491417,0.00016438,2]
[366315100,1750183855464,-524.55,0.00016438,2]
[366315102,1750183855476,-490.0,0.00016438,2]
[366315105,1750183855490,-490.0,0.00016438,2]
[366315107,1750183855502,-663.93,0.00016438,2]
[366315109,1750183855513,-490.0,0.00016438,2]
[366315112,1750183855526,-367.491417,0.00016438,2]
[366315114,1750183855538,-367.491417,0.00016438,2]
[366315116,1750183855550,-611.81689485,0.00016438,2]
[366315119,1750183855564,-635.82,0.00016438,2]
[366315121,1750183855576,-490.0,0.00016438,2]
[366315123,1750183855588,-490.0,0.00016438,2]
[366315126,1750183855601,-250.10000001,0.00016438,2]
[366315128,1750183855613,-1556.56,0.00016438,2]
[366315130,1750183855624,-367.491417,0.00016438,2]
[366315132,1750183855636,-704.16,0.00016438,2]
[366315135,1750183855649,-11998.36,0.00016438,2]
[366315137,1750183855661,-367.491417,0.00016438,2]
[366315139,1750183855672,-1367.28,0.00016438,2]
[366315141,1750183855684,-5040.45,0.00016438,2]
[366315144,1750183855696,-367.491417,0.00016438,2]
[366315146,1750183855709,-3320.09,0.00016438,2]
[366315148,1750183855721,-490.0,0.00016438,2]
[366315150,1750183855734,-303.96687288,0.00016438,2]
[366315153,1750183855747,-367.491417,0.00016438,2]
[366315155,1750183855759,-413.9837875,0.00016438,2]
[366315157,1750183855771,-500.0,0.00016438,2]
[366315160,1750183855783,-367.491417,0.00016438,2]
[366315162,1750183855795,-500.0,0.00016438,2]
[366315164,1750183855808,-500.0,0.00016438,2]
[366315167,1750183855822,-367.491417,0.00016438,2]
[366315169,1750183855834,-490.0,0.00016438,2]
[366315171,1750183855847,-490.0,0.00016438,2]
[366315174,1750183855859,-500.0,0.00016438,2]
[366315176,1750183855871,-500.0,0.00016438,2]
[366315178,1750183855882,-500.0,0.00016438,2]
[366315181,1750183855895,-4383.88,0.00016438,2]
[366315183,1750183855908,-500.0,0.00016438,2]
[366315185,1750183855920,-500.0,0.00016438,2]
[366315187,1750183855933,-500.0,0.00016438,2]
[366315190,1750183855945,-500.0,0.00016438,2]
[366315192,1750183855956,-490.0,0.00016438,2]
[366315194,1750183855969,-500.0,0.00016438,2]
[366315196,1750183855981,-500.0,0.00016438,2]
[366315199,1750183855992,-500.0,0.00016438,2]
[366315201,1750183856004,-490.0,0.00016438,2]
[366315203,1750183856016,-490.0,0.00016438,2]
[366315205,1750183856028,-500.0,0.00016438,2]
[366315208,1750183856040,-187.70861545,0.00016438,2]
[366315210,1750183856054,-490.0,0.00016438,2]
[366315212,1750183856068,-500.0,0.00016438,2]
[366315215,1750183856080,-490.0,0.00016438,2]
[366315217,1750183856091,-500.0,0.00016438,2]
[366315219,1750183856100,-490.0,0.00016438,2]
[366315221,1750183856109,-490.0,0.00016438,2]
[366315223,1750183856120,-8129.31,0.00016438,2]
[366315224,1750183856129,-500.0,0.00016438,2]
[366315226,1750183856139,-500.0,0.00016438,2]
[366315228,1750183856148,-500.0,0.00016438,2]
[366315230,1750183856158,-500.0,0.00016438,2]
[366315233,1750183856170,-490.0,0.00016438,2]
[366315235,1750183856179,-2618.52,0.00016438,2]
[366315237,1750183856188,-500.0,0.00016438,2]
[366315239,1750183856198,-3306.83,0.00016438,2]
[366315278,1750183856625,-490.0,0.00016438,2]
[366315282,1750183856715,-526.17,0.00016438,2]
[366315284,1750183856731,-490.0,0.00016438,2]
[366315288,1750183856761,-490.0,0.00016438,2]
[366315292,1750183856788,-423.3466956,0.00016438,2]
[366315294,1750183856798,-490.0,0.00016438,2]
[366315296,1750183856808,-490.0,0.00016438,2]
[366315298,1750183856817,-2071.48,0.00016438,2]
[366315300,1750183856827,-757.58,0.00016438,2]
[366315302,1750183856836,-490.0,0.00016438,2]
[366315304,1750183856845,-490.0,0.00016438,2]
[366315306,1750183856855,-490.0,0.00016438,2]
[366315308,1750183856864,-2380.39,0.00016438,2]
[366315310,1750183856874,-18197.31,0.00016438,2]
[366315312,1750183856883,-6722.13,0.00016438,2]
[366315314,1750183856892,-490.0,0.00016438,2]
[366315316,1750183856902,-1036.17,0.00016438,2]
[366315318,1750183856913,-490.0,0.00016438,2]
[366315320,1750183856922,-1364.44,0.00016438,2]
[366315322,1750183856931,-1666.12,0.00016438,2]
[366315324,1750183856940,-839.42,0.00016438,2]
[366315326,1750183856950,-490.0,0.00016438,2]
[366315328,1750183856959,-1445.42,0.00016438,2]
[366315330,1750183856968,-490.0,0.00016438,2]
[366315332,1750183856978,-490.63015549,0.00016438,2]
[366315334,1750183856988,-1186.08,0.00016438,2]
[366315336,1750183856997,-490.0,0.00016438,2]
[366315338,1750183857008,-490.0,0.00016438,2]
[366315340,1750183857017,-490.0,0.00016438,2]
[366315342,1750183857035,-1480.94,0.00016438,2]
[366315344,1750183857045,-490.0,0.00016438,2]
[366315346,1750183857056,-490.0,0.00016438,2]
[366315348,1750183857066,-490.0,0.00016438,2]
[366315350,1750183857075,-490.0,0.00016438,2]
[366315352,1750183857086,-7536.07,0.00016438,2]
[366315354,1750183857096,-490.0,0.00016438,2]
[366315356,1750183857106,-1375.54,0.00016438,2]
[366315358,1750183857115,-753.96,0.00016438,2]
[366315359,1750183857127,-490.0,0.00016438,2]
[366315362,1750183857137,-636.31235226,0.00016438,2]
[366315363,1750183857147,-490.0,0.00016438,2]
[366315366,1750183857157,-1102.5,0.00016438,2]
[366315367,1750183857169,-490.0,0.00016438,2]
[366315369,1750183857179,-490.0,0.00016438,2]
[366315371,1750183857188,-490.0,0.00016438,2]
[366315373,1750183857198,-490.0,0.00016438,2]
[366315375,1750183857208,-1243.65,0.00016438,2]
[366315378,1750183857219,-490.0,0.00016438,2]
[366315380,1750183857230,-490.0,0.00016438,2]
[366315382,1750183857240,-2934.88,0.00016438,2]
[366315384,1750183857250,-1417.21,0.00016438,2]
[366315386,1750183857261,-500.0,0.00016438,2]
[366315388,1750183857271,-500.0,0.00016438,2]
[366315390,1750183857281,-492.39564873,0.00016438,2]
[366315392,1750183857291,-523.64320111,0.00016438,2]
[366315394,1750183857301,-506.57,0.00016438,2]
[366315396,1750183857311,-1131.76,0.00016438,2]
[366315398,1750183857320,-608.39,0.00016438,2]
[366315399,1750183857329,-490.0,0.00016438,2]
[366315401,1750183857339,-1130.67,0.00016438,2]
[366315404,1750183857348,-1811.24,0.00016438,2]
[366315405,1750183857358,-3190.54,0.00016438,2]
[366315408,1750183857368,-490.0,0.00016438,2]
[366315410,1750183857377,-3968.25,0.00016438,2]
[366315412,1750183857386,-866.98,0.00016438,2]
[366315414,1750183857395,-490.0,0.00016438,2]
[366315416,1750183857405,-490.0,0.00016438,2]
[366315418,1750183857415,-666.73,0.00016438,2]
[366315420,1750183857424,-490.0,0.00016438,2]
[366315422,1750183857433,-555.73448144,0.00016438,2]
[366315424,1750183857443,-278.44069481,0.00016438,2]
[366315426,1750183857452,-490.0,0.00016438,2]
[366315428,1750183857462,-340.94631139,0.00016438,2]
[366315430,1750183857471,-7336.46,0.00016438,2]
[366315432,1750183857481,-490.0,0.00016438,2]
[366315434,1750183857490,-818.5,0.00016438,2]
[366315436,1750183857499,-490.0,0.00016438,2]
[366315438,1750183857509,-490.0,0.00016438,2]
[366315440,1750183857518,-490.0,0.00016438,2]
[366315442,1750183857527,-490.0,0.00016438,2]
[366315444,1750183857537,-203.172395,0.00016438,2]
[366315446,1750183857546,-833.92,0.00016438,2]
[366315448,1750183857556,-992.66,0.00016438,2]
[366315449,1750183857565,-1554.43,0.00016438,2]
[366315451,1750183857574,-427.16042913,0.00016438,2]
[366315453,1750183857583,-1941.83,0.00016438,2]
[366315455,1750183857593,-150.0,0.00016438,2]
[366315457,1750183857602,-2701.29795624,0.00016444,2]
[366315460,1750183857613,-151.0,0.0001645,2]
[366315462,1750183857622,-2158.969771,0.0001645,2]
[366315464,1750183857631,-2158.969771,0.0001645,2]
[366315465,1750183857642,-227.5177198,0.0001645,2]
[366315467,1750183857652,-2942.95955094,0.00016452,2]
[366315469,1750183857663,-315.17271657,0.00016461,2]
[366315472,1750183857673,-903.98717188,0.0001647,2]
[366315474,1750183857682,-500.0,0.00016473,2]
[366315476,1750183857690,-167.30646036,0.00016473,2]
[366315478,1750183857699,-500.0,0.00016473,2]
[366315480,1750183857708,-160.0895749,0.00016473,2]
[366315482,1750183857718,-196.31663126,0.00016473,2]
[366315484,1750183857727,-380.35655909,0.00016473,2]
[366315486,1750183857737,-170.58840193,0.00016473,2]
[366315488,1750183857747,-500.0,0.00016473,2]
[366315490,1750183857757,-500.0,0.00016473,2]
[366315492,1750183857767,-500.0,0.00016473,2]
[366315494,1750183857776,-509.10561264,0.00016473,2]
[366315496,1750183857785,-500.0,0.00016473,2]
[366315498,1750183857795,-500.0,0.00016473,2]
[366315500,1750183857805,-500.0,0.00016473,2]
[366315502,1750183857814,-500.0,0.00016473,2]
[366315504,1750183857824,-297.02892017,0.00016473,2]
[366315506,1750183857840,-341.31091834,0.00016473,2]
[366315508,1750183857851,-183.4260175,0.00016473,2]
[366315510,1750183857861,-160.06796838,0.00016473,2]
[366315512,1750183857871,-500.0,0.00016473,2]
[366315514,1750183857881,-500.0,0.00016473,2]
[366315516,1750183857891,-505.67646133,0.00016473,2]
[366315518,1750183857901,-500.0,0.00016473,2]
[366315520,1750183857910,-500.0,0.00016473,2]
[366315522,1750183857920,-500.0,0.00016473,2]
[366315524,1750183857930,-500.0,0.00016473,2]
[366315526,1750183857939,-583.76387157,0.00016473,2]
[366315528,1750183857949,-2701.29795624,0.00016481,2]
[366315530,1750183857958,-275.0,0.000165,2]
[366315532,1750183857968,-151.0,0.00016502,2]
[366315534,1750183857978,-945.98744,0.00016502,2]
[366315536,1750183857987,-345.6436956,0.00016502,2]
[366315538,1750183857997,-171.65939478,0.00016502,2]
[366315540,1750183858008,-2955.29585844,0.00016502,2]
[366315542,1750183858019,-236.37471927,0.00016502,2]
[366315544,1750183858029,-1134.599,0.00016512,2]
[366315546,1750183858042,-2701.29795624,0.00016518,2]
[366315548,1750183858055,-500.0,0.00016519,2]
[366315550,1750183858065,-500.0,0.0001652,2]
[366315552,1750183858075,-2080.45818,0.0001652,2]
[366315554,1750183858085,-2080.45818,0.0001652,2]
[366315556,1750183858095,-151.0,0.0001652,2]
[366315558,1750183858105,-348.936815,0.0001652,2]
[366315561,1750183858115,-348.936815,0.0001652,2]
[366315562,1750183858126,-500.0,0.0001652,2]
[366315565,1750183858136,-151.0,0.00016521,2]
[366315566,1750183858146,-151.0,0.00016521,2]
[366315569,1750183858155,-186.195225,0.00016521,2]
[366315571,1750183858167,-186.195225,0.00016521,2]
[366315573,1750183858176,-435.585435,0.00016521,2]
[366315575,1750183858185,-435.585435,0.00016521,2]
[366315577,1750183858195,-167.382542,0.00016521,2]
[366315579,1750183858205,-167.382542,0.00016521,2]
[366315581,1750183858214,-246.07182483,0.00016539,2]
[366315583,1750183858223,-580.791069,0.00016555,2]
[366315585,1750183858233,-580.791069,0.00016555,2]
[366315587,1750183858243,-367.491417,0.00016555,2]
[366315589,1750183858253,-367.491417,0.00016555,2]
[366315591,1750183858262,-2701.29795624,0.00016555,2]
[366315593,1750183858272,-1677.0,0.00016557,2]
[366315595,1750183858282,-1939.35255899,0.00016569,2]
[366315597,1750183858291,-227.5177198,0.00016569,2]
[366315599,1750183858301,-833.87704394,0.00016575,2]
[366315601,1750183858310,-586.84357826,0.0001658,2]
[366315603,1750183858319,-315.17271657,0.00016589,2]
[366315605,1750183858329,-2942.95955094,0.0001659,2]
[366315607,1750183858339,-2701.29795624,0.00016593,2]
[366315609,1750183858348,-161.731303,0.00016596,2]
[366315611,1750183858357,-161.731303,0.00016596,2]
[366315613,1750183858367,-151.0,0.00016596,2]
[366315615,1750183858376,-151.0,0.00016596,2]
[366315616,1750183858387,-160.322104,0.00016596,2]
[366315618,1750183858396,-160.322104,0.00016596,2]
[366315620,1750183858406,-186.195225,0.00016596,2]
[366315623,1750183858416,-186.195225,0.00016596,2]
[366315625,1750183858426,-435.585435,0.00016596,2]
[366315627,1750183858436,-435.585435,0.00016596,2]
[366315629,1750183858446,-190.749546,0.00016596,2]
[366315631,1750183858456,-190.749546,0.00016596,2]
[366315633,1750183858466,-167.382542,0.00016596,2]
[366315635,1750183858475,-167.382542,0.00016596,2]
[366315637,1750183858485,-1338.750107,0.00016596,2]
[366315639,1750183858494,-1338.750107,0.00016596,2]
[366315641,1750183858505,-285.402151,0.00016596,2]
[366315643,1750183858514,-285.402151,0.00016596,2]
[366315645,1750183858524,-500.0,0.00016597,2]
[366315647,1750183858534,-500.0,0.00016598,2]
[366315649,1750183858543,-640.67170139,0.00016598,2]
[366315651,1750183858553,-500.0,0.00016598,2]
[366315653,1750183858564,-500.0,0.00016598,2]
[366315655,1750183858575,-500.0,0.00016598,2]
[366315657,1750183858584,-500.0,0.00016598,2]
[366315659,1750183858593,-500.0,0.00016598,2]
[366315661,1750183858603,-500.0,0.00016598,2]
[366315663,1750183858613,-500.0,0.00016598,2]
[366315665,1750183858623,-500.0,0.00016598,2]
[366315667,1750183858633,-702.25,0.000166,2]
[366315669,1750183858642,-500.0,0.00016601,2]
[366315671,1750183858652,-500.0,0.00016601,2]
[366315673,1750183858661,-500.0,0.00016601,2]
[366315675,1750183858671,-500.0,0.00016601,2]
[366315677,1750183858681,-500.0,0.00016601,2]
[366315679,1750183858690,-500.0,0.00016601,2]
[366315681,1750183858699,-500.0,0.00016601,2]
[366315683,1750183858708,-500.0,0.00016601,2]
[366315685,1750183858717,-3186.592471,0.00016601,2]
[366315687,1750183858727,-3186.592471,0.00016601,2]
[366315689,1750183858736,-280.628356,0.00016601,2]
[366315691,1750183858746,-280.628356,0.00016601,2]
[366315693,1750183858755,-186.724308,0.00016601,2]
[366315695,1750183858765,-186.724308,0.00016601,2]
[366315697,1750183858775,-151.0,0.00016601,2]
[366315699,1750183858784,-1102.431131,0.00016601,2]
[366315701,1750183858794,-1102.431131,0.00016601,2]
[366315703,1750183858803,-5226.113523,0.00016601,2]
[366315705,1750183858814,-5226.113523,0.00016601,2]
[366315707,1750183858824,-181.22,0.00016601,2]
[366315709,1750183858834,-666.0,0.00016601,2]
[366315711,1750183858844,-300.0,0.00016601,2]
[366315713,1750183858854,-300.0,0.00016601,2]
[366315715,1750183858864,-300.0,0.00016601,2]
[366315717,1750183858874,-666.0,0.00016601,2]
[366315719,1750183858883,-300.0,0.00016601,2]
[366315721,1750183858893,-300.0,0.00016601,2]
[366315723,1750183858903,-666.0,0.00016601,2]
[366315725,1750183858913,-151.0,0.00016602,2]
[366315726,1750183858923,-151.0,0.00016602,2]
[366315728,1750183858934,-151.0,0.00016602,2]
[366315729,1750183858944,-151.0,0.00016602,2]
[366315730,1750183858953,-151.0,0.00016602,2]
[366315731,1750183858963,-151.0,0.00016602,2]
[366315732,1750183858973,-151.0,0.00016602,2]
[366315733,1750183858982,-151.0,0.00016602,2]
[366315734,1750183858992,-151.0,0.00016602,2]
[366315735,1750183859002,-151.0,0.00016602,2]
[366315736,1750183859012,-151.0,0.00016602,2]
[366315737,1750183859021,-151.0,0.00016602,2]
[366315738,1750183859031,-151.0,0.00016602,2]
[366315739,1750183859042,-151.0,0.00016602,2]
[366315740,1750183859052,-151.0,0.00016602,2]
[366315741,1750183859062,-151.0,0.00016602,2]
[366315742,1750183859072,-151.0,0.00016602,2]
[366315743,1750183859083,-308.502798,0.00016602,2]
[366315745,1750183859093,-308.502798,0.00016602,2]
[366315747,1750183859103,-181.228192,0.00016602,2]
[366315749,1750183859113,-181.228192,0.00016602,2]
[366315751,1750183859123,-151.0,0.00016602,2]
[366315753,1750183859134,-151.0,0.00016602,2]
[366315755,1750183859143,-151.0,0.00016602,2]
[366315757,1750183859153,-151.0,0.00016602,2]
[366315758,1750183859163,-151.0,0.00016602,2]
[366315760,1750183859174,-151.0,0.00016602,2]
[366315763,1750183859184,-151.0,0.00016602,2]
[366315765,1750183859193,-151.0,0.00016602,2]
[366315767,1750183859202,-151.0,0.00016602,2]
[366315769,1750183859212,-215.338263,0.00016602,2]
[366315771,1750183859221,-215.338263,0.00016602,2]
[366315773,1750183859230,-151.0,0.00016602,2]
[366315775,1750183859239,-151.0,0.00016602,2]
[366315777,1750183859248,-151.0,0.00016602,2]
[366315779,1750183859258,-151.0,0.00016602,2]
[366315781,1750183859267,-151.0,0.00016602,2]
[366315783,1750183859276,-151.0,0.00016602,2]
[366315785,1750183859286,-151.0,0.00016602,2]
[366315787,1750183859295,-176.748691,0.00016602,2]
[366315789,1750183859306,-181.941982,0.00016602,2]
[366315791,1750183859315,-1306.544799,0.00016602,2]
[366315793,1750183859324,-1306.544799,0.00016602,2]
[366315795,1750183859334,-317.918756,0.00016602,2]
[366315797,1750183859344,-317.918756,0.00016602,2]
[366315799,1750183859353,-235.204796,0.00016602,2]
[366315801,1750183859363,-235.204796,0.00016602,2]
[366315803,1750183859372,-255.860033,0.00016602,2]
[366315805,1750183859381,-255.860033,0.00016602,2]
[366315807,1750183859391,-255.860033,0.00016602,2]
[366315809,1750183859400,-255.860033,0.00016602,2]
[366315811,1750183859410,-954.307899,0.00016602,2]
[366315813,1750183859421,-954.307899,0.00016602,2]
[366315815,1750183859431,-394.818842,0.00016602,2]
[366315817,1750183859441,-151.0,0.00016602,2]
[366315819,1750183859450,-151.0,0.00016602,2]
[366315821,1750183859460,-394.818842,0.00016602,2]
[366315823,1750183859469,-151.0,0.00016602,2]
[366315825,1750183859478,-151.0,0.00016602,2]
[366315827,1750183859488,-151.0,0.00016602,2]
[366315829,1750183859497,-151.0,0.00016602,2]
[366315831,1750183859507,-151.0,0.00016602,2]
[366315833,1750183859517,-10000.0,0.00016602,2]
[366315835,1750183859527,-10000.0,0.00016602,2]
[366315837,1750183859536,-151.0,0.00016602,2]
[366315839,1750183859547,-151.0,0.00016602,2]
[366315841,1750183859557,-151.0,0.00016602,2]
[366315843,1750183859567,-151.0,0.00016602,2]
[366315845,1750183859576,-151.0,0.00016602,2]
[366315847,1750183859586,-151.0,0.00016602,2]
[366315849,1750183859597,-151.0,0.00016602,2]
[366315851,1750183859607,-151.0,0.00016602,2]
[366315853,1750183859616,-333.147851,0.00016602,2]
[366315855,1750183859626,-333.147851,0.00016602,2]
[366315857,1750183859635,-151.0,0.00016602,2]
[366315859,1750183859644,-151.0,0.00016602,2]
[366315861,1750183859654,-402.327914,0.00016602,2]
[366315863,1750183859664,-402.327914,0.00016602,2]
[366315865,1750183859675,-402.327914,0.00016602,2]
[366315867,1750183859684,-402.327914,0.00016602,2]
[366315889,1750183859887,-151.0,0.00016602,2]
[366315892,1750183859906,-151.0,0.00016602,2]
[366315895,1750183859925,-490.0,0.00016602,2]
[366315897,1750183859936,-151.0,0.00016602,2]